lending/lending_fUSD_20250819
["ID","MTS","AMOUNT","RATE_DAILY","PERIOD"]
[380285407,1755632709833,-626.52805384,0.00046354,120]
[380285408,1755632709931,-568.02608018,0.00046355,120]
[380285409,1755632710035,-959.23029203,0.00046357,120]
[380285410,1755632710144,-959.23029203,0.00046365,120]
[380285411,1755632710245,-6271.42051935,0.00046367,120]
[380285412,1755632710346,-44705.28342103,0.00046367,120]
[380285413,1755632710448,-860.43708722,0.00046375,120]
[380285414,1755632710551,-1673.19555379,0.00046379,120]
[380285415,1755632710653,-3801.26256392,0.00046382,120]
[380285416,1755632710751,-220.63071692,0.00046382,120]
[380285417,1755632710849,-900.7644331,0.00046384,120]
[380285418,1755632710948,-900.38444198,0.00046386,120]
[380285419,1755632711051,-951.99631991,0.00046387,120]
[380285420,1755632711153,-1558.67844114,0.00046394,120]
[380285421,1755632711253,-951.99631991,0.00046399,120]
[380285422,1755632711353,-10000.0,0.000464,120]
[380285423,1755632711456,-163548.07879016,0.000464,120]
[380285424,1755632711556,-25230.35806903,0.000464,120]
[380285425,1755632711657,-28516.30080955,0.00046402,120]
[380285426,1755632711756,-900.7644331,0.00046403,120]
[380285427,1755632711858,-951.99631991,0.00046412,120]
[380285428,1755632711957,-860.43708722,0.00046414,120]
[380285429,1755632712057,-1258.54237359,0.00046418,120]
[380285430,1755632712162,-456.7107343,0.00046422,120]
[380285431,1755632712278,-542.35783033,0.00046424,120]
[380285432,1755632712384,-9185.98220091,0.00046429,120]
[380285433,1755632712487,-1673.19555379,0.00046431,120]
[380285434,1755632712594,-220.63071692,0.00046433,120]
[380285435,1755632712698,-1258.54237359,0.00046435,120]
[380285436,1755632713050,-28516.30080955,0.00046438,120]
[380285437,1755632713159,-542.35783033,0.00046443,120]
[380285438,1755632713265,-9185.98220091,0.00046452,120]
[380285439,1755632713367,-568.02608018,0.00046452,120]
[380285440,1755632713474,-28516.30080955,0.00046452,120]
[380285441,1755632713580,-6271.42051935,0.00046455,120]
[380285442,1755632713683,-860.43708722,0.00046456,120]
[380285443,1755632713784,-1558.67844114,0.00046459,120]
[380285444,1755632713888,-9185.98220091,0.00046464,120]
[380285445,1755632713991,-959.23029203,0.00046466,120]
[380285446,1755632714095,-626.52805384,0.00046466,120]
[380285447,1755632714208,-900.38444198,0.00046472,120]
[380285448,1755632714330,-44705.28342103,0.00046476,120]
[380285449,1755632714435,-3801.26256392,0.00046478,120]
[380285450,1755632714536,-456.7107343,0.0004648,120]
[380285451,1755632714645,-6271.42051935,0.00046488,120]
[380285452,1755632714752,-860.43708722,0.0004649,120]
[380285453,1755632714853,-3801.26256392,0.00046497,120]
[380285454,1755632714952,-8000.0,0.000465,120]
[380285455,1755632715054,-6000.0,0.000465,120]
[380285456,1755632715161,-1642.730358,0.000465,120]
[380285457,1755632715268,-2521.07127586,0.000465,120]
[380285458,1755632715375,-862.0,0.000465,120]
[380285459,1755632715479,-156.587,0.00046569,120]
[380285460,1755632715586,-6707.0,0.0004657,120]
[380285461,1755632715692,-38111.0,0.0004657,120]
[380285462,1755632715799,-500.0,0.0004657,120]
[380285463,1755632715905,-151.0,0.00046574,120]
[380285464,1755632716010,-1781.4,0.00046575,120]
[380285465,1755632716111,-3340.24,0.00046575,120]
[380285466,1755632716210,-1000.0,0.00046575,120]
[380285467,1755632716311,-716.0,0.00046575,120]
[380285468,1755632716413,-716.0,0.00046575,120]
[380285469,1755632716517,-716.0,0.00046575,120]
[380285470,1755632716617,-716.0,0.00046575,120]
[380285471,1755632716717,-716.0,0.00046575,120]
[380285472,1755632716819,-716.0,0.00046575,120]
[380285473,1755632716918,-716.0,0.00046575,120]
[380285474,1755632717018,-716.0,0.00046575,120]
[380285475,1755632717122,-716.0,0.00046575,120]
[380285476,1755632717227,-716.0,0.00046575,120]
[380285477,1755632717335,-716.0,0.00046575,120]
[380285478,1755632717440,-716.0,0.00046575,120]
[380285479,1755632717543,-1458.0,0.00046575,120]
[380285480,1755632717642,-1458.0,0.00046575,120]
[380285481,1755632717743,-1458.0,0.00046575,120]
[380285482,1755632717847,-1458.0,0.00046575,120]
[380285483,1755632717949,-1458.0,0.00046575,120]
[380285484,1755632718053,-1458.0,0.00046575,120]
[380285485,1755632718158,-1458.0,0.00046575,120]
[380285486,1755632718263,-1458.0,0.00046575,120]
[380285487,1755632718368,-1458.0,0.00046575,120]
[380285488,1755632718470,-1458.0,0.00046575,120]
[380285489,1755632718577,-1458.0,0.00046575,120]
[380285490,1755632718683,-1458.0,0.00046575,120]
[380285491,1755632718786,-1458.0,0.00046575,120]
[380285492,1755632718897,-716.0,0.00046575,120]
[380285493,1755632719003,-716.0,0.00046575,120]
[380285494,1755632719107,-716.0,0.00046575,120]
[380285495,1755632719210,-716.0,0.00046575,120]
[380285496,1755632719313,-716.0,0.00046575,120]
[380285497,1755632719417,-716.0,0.00046575,120]
[380285498,1755632719519,-716.0,0.00046575,120]
[380285499,1755632719623,-716.0,0.00046575,120]
[380285500,1755632719724,-716.0,0.00046575,120]
[380285501,1755632719828,-716.0,0.00046575,120]
[380285502,1755632719928,-716.0,0.00046575,120]
[380285503,1755632720027,-716.0,0.00046575,120]
[380285504,1755632720131,-716.0,0.00046575,120]
[380285505,1755632720230,-716.0,0.00046575,120]
[380285506,1755632720339,-1458.0,0.00046575,120]
[380285507,1755632720443,-1458.0,0.00046575,120]
[380285508,1755632720546,-1458.0,0.00046575,120]
[380285509,1755632720648,-1458.0,0.00046575,120]
[380285510,1755632720749,-1458.0,0.00046575,120]
[380285511,1755632720850,-1458.0,0.00046575,120]
[380285512,1755632720953,-1458.0,0.00046575,120]
[380285513,1755632721058,-1458.0,0.00046575,120]
[380285514,1755632721161,-1458.0,0.00046575,120]
[380285515,1755632721267,-1458.0,0.00046575,120]
[380285516,1755632721378,-1458.0,0.00046575,120]
[380285517,1755632721483,-1458.0,0.00046575,120]
[380285518,1755632721597,-1458.0,0.00046575,120]
[380285519,1755632721702,-1458.0,0.00046575,120]
[380285520,1755632721804,-716.0,0.00046575,120]
[380285521,1755632721911,-716.0,0.00046575,120]
[380285522,1755632722015,-716.0,0.00046575,120]
[380285523,1755632722118,-716.0,0.00046575,120]
[380285524,1755632722222,-716.0,0.00046575,120]
[380285525,1755632722325,-716.0,0.00046575,120]
[380285526,1755632722430,-716.0,0.00046575,120]
[380285527,1755632722533,-716.0,0.00046575,120]
[380285528,1755632722638,-716.0,0.00046575,120]
[380285529,1755632722742,-716.0,0.00046575,120]
[380285530,1755632722845,-716.0,0.00046575,120]
[380285531,1755632722947,-716.0,0.00046575,120]
[380285532,1755632723359,-716.0,0.00046575,120]
[380285533,1755632723464,-716.0,0.00046575,120]
[380285534,1755632723568,-2250.0,0.00046575,120]
[380285535,1755632724780,152.0,0.00038,120]
[380285536,1755632724897,500.0,0.00039,120]
[380285537,1755632725410,152.0,0.00039,120]
[380285538,1755632725637,250.0,0.00042,120]
[380285539,1755632725757,1744.77109407,0.000438,120]
[380285540,1755632726298,152.0,0.0004,120]
[380285541,1755632727652,152.0,0.00041,120]
[380285542,1755632728231,200.0,0.00045999,120]
[380285543,1755632728356,1000.0,0.00045999,120]
[380285544,1755632728475,151.0,0.00045999,120]
[380285545,1755632728583,160.0,0.00045999,120]
[380285546,1755632728865,152.0,0.00042,120]
[380285547,1755632728993,207.4,0.00045999,120]
[380285548,1755632729103,1000.0,0.00045999,120]
[380285549,1755632729219,151.0,0.00045999,120]
[380285550,1755632729329,160.0,0.00045999,120]
[380285551,1755632729463,520.0,0.00045999,120]
[380285552,1755632729764,215.0738,0.00045999,120]
[380285553,1755632729927,151.0,0.00045999,120]
[380285554,1755632730041,160.0,0.00045999,120]
[380285555,1755632730235,539.24,0.00045999,120]
[380285556,1755632730625,223.0315306,0.00045999,120]
[380285557,1755632730800,160.0,0.00045999,120]
[380285558,1755632730915,152.0,0.00043,120]
[380285559,1755632731076,559.19188,0.00045999,120]
[380285560,1755632731374,231.28369723,0.00045999,120]
[380285561,1755632731512,160.0,0.00045999,120]
[380285562,1755632731982,579.88197956,0.00045999,120]
[380285563,1755632732339,160.0,0.00045999,120]
[380285564,1755632732456,239.84119403,0.00045999,120]
[380285565,1755632732590,152.0,0.00044,120]
[380285566,1755632732708,500.0,0.00045999,120]
[380285567,1755632732830,601.3376128,0.00045999,120]
[380285568,1755632732934,500.0,0.00045999,120]
[380285569,1755632733146,248.71531821,0.00045999,120]
[380285570,1755632733259,764.83278027,0.00045999,120]
[380285571,1755632733374,500.0,0.00045999,120]
[380285572,1755632733540,300.0,0.00045,120]
[380285573,1755632733685,500.0,0.00045999,120]
[380285574,1755632733864,160.0,0.00045999,120]
[380285575,1755632734002,257.91778498,0.00045999,120]
[380285576,1755632734225,500.0,0.00045999,120]
[380285577,1755632734351,152.0,0.00045,120]
[380285578,1755632734471,500.0,0.00045999,120]
[380285579,1755632735554,267.46074303,0.00045999,120]
[380285580,1755632735685,500.0,0.00045999,120]
[380285581,1755632735797,500.0,0.00045999,120]
[380285582,1755632736268,600.0,0.00045999,120]
[380285583,1755632736453,160.0,0.00045999,120]
[380285584,1755632736573,277.35679052,0.00045999,120]
[380285585,1755632736705,500.0,0.00045999,120]
[380285586,1755632736818,152.0,0.00046,120]
[380285587,1755632736964,600.0,0.00045999,120]
[380285588,1755632737142,160.0,0.00045999,120]
[380285589,1755632737268,287.61899177,0.00045999,120]
[380285590,1755632737382,500.0,0.00045999,120]
[380285591,1755632737524,500.0,0.00045999,120]
[380285592,1755632737824,160.0,0.00045999,120]
[380285593,1755632737938,298.26089446,0.00045999,120]
[380285594,1755632738230,309.29654756,0.00045999,120]
[380285595,1755632738342,160.0,0.00045999,120]
[380285596,1755632738477,151.0,0.00045999,120]
[380285597,1755632738872,320.74051982,0.00045999,120]
[380285598,1755632738983,160.0,0.00045999,120]
[380285599,1755632739111,151.0,0.00045999,120]
[380285600,1755632739396,255.92890987,0.00045999,120]
[380285601,1755632739518,332.60791905,0.00045999,120]
[380285602,1755632739648,151.0,0.00045999,120]
[380285603,1755632739901,344.91441206,0.00045999,120]
[380285604,1755632740095,151.0,0.00045999,120]
[380285605,1755632740272,357.6762453,0.00045999,120]
[380285606,1755632740511,281.5055913,0.00045999,120]
[380285607,1755632740763,600.0,0.00045999,120]
[380285608,1755632740899,370.91026638,0.00045999,120]
[380285609,1755632741079,600.0,0.00045999,120]
[380285610,1755632741321,384.63394623,0.00045999,120]
[380285611,1755632741821,600.0,0.00045999,120]
[380285612,1755632742050,398.86540225,0.00045999,120]
[380285613,1755632742318,600.0,0.00045999,120]
[380285614,1755632742559,600.0,0.00045999,120]
[380285615,1755632742768,600.0,0.00045999,120]
[380285616,1755632743085,7010.725,0.00046575,120]
[380285617,1755632743291,5888.0,0.00046575,120]
[380285618,1755632743428,600.0,0.00045999,120]
[380285619,1755632743633,300.0,0.00045999,120]
[380285620,1755632743877,600.0,0.00045999,120]
[380285621,1755632744221,151.0,0.00045999,120]
[380285622,1755632744364,600.0,0.00045999,120]
[380285623,1755632744533,151.0,0.00045999,120]
[380285624,1755632744673,600.0,0.00045999,120]
[380285625,1755632744880,151.0,0.00045999,120]
[380285626,1755632745098,151.0,0.00045999,120]
[380285627,1755632745232,600.0,0.00045999,120]
[380285628,1755632746523,151.0,0.00045999,120]
[380285629,1755632746636,600.0,0.00045999,120]
[380285630,1755632746740,151.0,0.00045999,120]
[380285631,1755632747014,151.0,0.00045999,120]
[380285632,1755632747208,151.0,0.00045999,120]
[380285633,1755632747320,600.0,0.00045999,120]
[380285634,1755632747856,600.0,0.00045999,120]
[380285635,1755632747962,151.0,0.00045999,120]
[380285636,1755632748088,151.0,0.00045999,120]
[380285637,1755632748393,151.0,0.00045999,120]
[380285638,1755632748696,600.0,0.00045999,120]
[380285639,1755632749499,600.0,0.00045999,120]
[380285640,1755632749799,600.0,0.00045999,120]
[380285641,1755632750359,150.0,0.0003436,120]
[380285642,1755632750709,600.0,0.00045999,120]
[380285643,1755632750850,600.0,0.00045999,120]
[380285644,1755632751095,600.0,0.00045999,120]
[380285645,1755632751508,600.0,0.00045999,120]
[380285646,1755632751902,600.0,0.00045999,120]
[380285647,1755632752220,600.0,0.00045999,120]
[380285648,1755632752548,600.0,0.00045999,120]
[380285649,1755632752988,600.0,0.00045999,120]
[380285650,1755632753331,600.0,0.00045999,120]
[380285651,1755632753654,600.0,0.00045999,120]
[380285652,1755632753898,600.0,0.00045999,120]
[380285653,1755632754270,600.0,0.00045999,120]
[380285654,1755632754759,600.0,0.00045999,120]
[380285655,1755632755215,600.0,0.00045999,120]
[380285656,1755632755641,600.0,0.00045999,120]
[380285657,1755632755944,600.0,0.00045999,120]
[380285658,1755632756237,600.0,0.00045999,120]
[380285659,1755632757540,150.0,0.00045,120]
[380285660,1755632757647,600.0,0.00045999,120]
[380285661,1755632758446,600.0,0.00045999,120]
[380285662,1755632758705,173.3114,0.0004,120]
[380285663,1755632758863,600.0,0.00045999,120]
[380285664,1755632759314,600.0,0.00045999,120]
[380285665,1755632760092,843.87140665,0.0004,120]
[380285666,1755632760622,270.0,0.00045,120]
[380285667,1755632761075,500.0,0.00045999,120]
[380285668,1755632761202,420.2,0.00041041,120]
[380285669,1755632761415,420.2,0.00041041,120]
[380285670,1755632761639,420.2,0.00041041,120]
[380285671,1755632761758,500.0,0.00045999,120]
[380285672,1755632761943,420.2,0.00041041,120]
[380285673,1755632762208,500.0,0.00045999,120]
[380285674,1755632762511,500.0,0.00045999,120]
[380285675,1755632763328,500.0,0.00045999,120]
[380285678,1755632914247,-1200.0,9.573e-05,2]
[380285679,1755632914279,-150.0,9.573e-05,2]
[380285680,1755632914300,-500.0,9.573e-05,2]
[380285681,1755632914323,-152.22292157,9.573e-05,2]
[380285682,1755632914345,-500.0,9.573e-05,2]
[380285683,1755632914372,-500.0,9.573e-05,2]
[380285684,1755632914395,-500.0,9.573e-05,2]
[380285685,1755632914416,-500.0,9.573e-05,2]
[380285686,1755632914438,-500.0,9.573e-05,2]
[380285687,1755632914459,-500.0,9.573e-05,2]
[380285688,1755632914479,-500.0,9.573e-05,2]
[380285689,1755632914500,-1200.0,9.574e-05,2]
[380285690,1755632914521,-300.0,9.574e-05,2]
[380285691,1755632914541,-369.18435057,9.574e-05,2]
[380285692,1755632914639,500.0,9.573e-05,2]
[380285693,1755632914714,500.0,9.573e-05,2]
[380285694,1755632914778,500.0,9.573e-05,2]
[380285695,1755632914842,500.0,9.573e-05,2]
[380285696,1755632914887,500.0,9.573e-05,2]
[380285697,1755632914927,500.0,9.573e-05,2]
[380285698,1755632914975,500.0,9.573e-05,2]
[380285699,1755632915026,500.0,9.573e-05,2]
[380285700,1755632915098,500.0,9.573e-05,2]
[380285701,1755632918706,162.85350117,9.573e-05,2]
[380285702,1755632921318,500.0,9.573e-05,2]
[380285703,1755632927071,264.93838518,9.573e-05,2]
[380285704,1755632930671,500.0,9.573e-05,2]
[380285705,1755632930861,500.0,9.573e-05,2]
[380285706,1755632930960,500.0,9.573e-05,2]
[380285707,1755632931329,500.0,9.573e-05,2]
[380285708,1755632931443,200.80084151,9.573e-05,2]
[380285709,1755632958171,-299.19915849,9.573e-05,2]
[380285710,1755632958194,-500.0,9.573e-05,2]
[380285711,1755632958215,-500.0,9.573e-05,2]
[380285712,1755632958238,-200.80084151,9.573e-05,2]
[380285713,1755632958337,158.0,6.9e-05,2]
[380285714,1755632959040,155.0,8.08e-05,2]
[380285715,1755632959513,151.0,9.27e-05,2]
[380285722,1755633031471,-166.714903,9.573e-05,2]
[380285723,1755633031481,-283.44,9.582e-05,2]
[380285724,1755633031491,-166.06,9.582e-05,2]
[380285725,1755633031500,-458.43483364,9.586e-05,2]
[380285726,1755633031516,-1000.0,9.685e-05,2]
[380285727,1755633031525,-357.65,9.711e-05,2]
[380285728,1755633031535,-1200.0,9.714e-05,2]
[380285729,1755633031544,-5904.45,9.715e-05,2]
[380285730,1755633031553,-250.0,9.857e-05,2]
[380285731,1755633031563,-170.0,9.869e-05,7]
[380285732,1755633031575,-300.0,9.887e-05,2]
[380285733,1755633031584,-150.00000001,9.888e-05,2]
[380285734,1755633031594,-150.0,9.888e-05,2]
[380285735,1755633031604,-150.0,9.888e-05,2]
[380285736,1755633031613,-150.0,9.888e-05,2]
[380285737,1755633031623,-179.06,9.969e-05,2]
[380285738,1755633031632,-369.18435057,0.00010187,2]
[380285739,1755633031642,-3000.0,0.00010214,2]
[380285740,1755633031656,-788.43380072,0.00010448,2]
[380285741,1755633031667,-150.0,0.0001045,2]
[380285742,1755633031680,-371.93054038,0.0001053,2]
[380285743,1755633031692,-169.06945962,0.0001053,2]
[380285744,1755633031702,-255.0,0.0001053,2]
[380285745,1755633031713,-150.0,0.0001053,4]
[380285746,1755633031722,-160.0,0.00010587,2]
[380285747,1755633031732,-843.87140665,0.00010587,2]
[380285748,1755633031741,-212.02104404,0.00010587,2]
[380285749,1755633031751,-1680.0,0.00010686,2]
[380285750,1755633031763,-330.0525627,0.0001078,2]
[380285751,1755633031773,-283.44,0.0001078,2]
[380285752,1755633031783,-172.0,0.00010875,2]
[380285753,1755633031793,-2654.93208107,0.0001089,2]
[380285755,1755633031802,-1000.0,0.00010896,2]
[380285757,1755633031811,-1000.0,0.000109,2]
[380285759,1755633031821,-1748.87706789,0.000109,2]
[380285763,1755633031849,-689.0826,0.000109,2]
[380285766,1755633031861,-62.04033211,0.000109,2]
[380285769,1755633031870,-369.18435057,0.000109,2]
[380285772,1755633031879,-5000.0,0.000109,2]
[380285776,1755633031889,-160.36672888,0.000109,2]
[380285780,1755633031898,-748.14708266,0.00010912,2]
[380285783,1755633031908,-748.14708266,0.00010917,2]
[380285786,1755633031917,-1681.76821631,0.0001092,2]
[380285789,1755633031927,-1681.76821631,0.00010928,2]
[380285792,1755633031936,-2168.76403866,0.00010931,2]
[380285795,1755633031946,-1681.76821631,0.00010933,2]
[380285798,1755633031955,-2168.76403866,0.0001094,2]
[380285801,1755633031964,-2168.76403866,0.00010941,2]
[380285805,1755633031974,-2168.76403866,0.0001095,2]
[380285809,1755633031983,-2168.76403866,0.00010956,2]
[380285812,1755633031993,-1205.79492458,0.0001096,2]
[380285815,1755633032002,-1205.79492458,0.00010965,2]
[380285817,1755633032014,-1681.76821631,0.0001097,2]
[380285819,1755633032023,-1681.76821631,0.00010972,2]
[380285821,1755633032032,-748.14708266,0.00010976,2]
[380285823,1755633032041,-1205.79492458,0.00010976,2]
[380285825,1755633032051,-1000.0,0.00010977,2]
[380285827,1755633032060,-1205.79492458,0.00010977,2]
[380285829,1755633032070,-402.99362579,0.00010977,2]
[380285831,1755633032079,-190.34072522,0.00010977,2]
[380285833,1755633032088,-177.92236147,0.00010977,2]
[380285835,1755633032098,-2168.76403866,0.00010977,2]
[380285837,1755633032107,-2789.88993449,0.00010978,6]
[380285839,1755633032116,-748.14708266,0.00010979,2]
[380285841,1755633032126,-748.14708266,0.00010979,2]
[380285843,1755633032135,-2168.76403866,0.0001098,2]
[380285845,1755633032145,-1205.79492458,0.00010981,2]
[380285847,1755633032154,-748.14708266,0.00010983,2]
[380285849,1755633032163,-159.75193126,0.0001099,2]
[380285851,1755633032173,-159.75193126,0.0001099,2]
[380285853,1755633032182,-159.75193126,0.0001099,2]
[380285855,1755633032191,-754.9610685,0.00010991,2]
[380285862,1755633032252,-926.80714781,0.00010991,2]
[380285864,1755633032263,-677.69771348,0.00010991,2]
[380285867,1755633032282,-528.0972111,0.00010991,2]
[380285869,1755633032292,-1205.79492458,0.00010994,2]
[380285871,1755633032301,-604.38524275,0.00010996,2]
[380285874,1755633032316,-1077.38297356,0.00010996,2]
[380285876,1755633032326,-748.14708266,0.00010997,2]
[380285878,1755633032335,-2264.32409887,0.00010999,2]
[380285880,1755633032346,-6750.00563474,0.00010999,2]
[380285882,1755633032355,-4000.0,0.00010999,2]
[380285884,1755633032365,-1120.48565595,0.00010999,3]
[380285886,1755633032375,-1420.0,0.00011,2]
[380285888,1755633032386,-50371.18257913,0.00011,2]
[380286007,1755633037399,-48460.29826606,0.00011,2]
[380286008,1755633037410,-11004.40101892,0.00011,2]
[380286009,1755633037452,-4434.48412054,0.00011,2]
[380286010,1755633037464,-767.54511471,0.00011,2]
[380286011,1755633037476,-567.35995514,0.00011,2]
[380286012,1755633037487,-1163.39689181,0.00011,2]
[380286013,1755633037498,-9297.09597479,0.00011,2]
[380286014,1755633037509,-655.00000018,0.00011,2]
[380286015,1755633037521,-5406.3140865,0.00011,2]
[380286016,1755633037532,-915.27601112,0.00011,2]
[380286017,1755633037561,-5348688.43757843,0.00011,2]
[380286018,1755633037571,-322012.55,0.00011,2]
[380286019,1755633037580,-19304.58,0.00011,2]
[380286020,1755633037590,-991218.32526599,0.00011,2]
[380286021,1755633037599,-700.58,0.00011054,2]
[380286022,1755633037608,-628.7509014,0.00011063,2]
[380286023,1755633037618,-500.0,0.00011073,2]
[380286024,1755633037628,-500.0,0.00011073,2]
[380286025,1755633037637,-300.34645665,0.00011073,2]
[380286026,1755633037647,-1343473.92460008,0.00011099,2]
[380286027,1755633037656,-151.0,0.00011099,2]
[380286028,1755633037665,-151.0,0.00011099,2]
[380286029,1755633037675,-200.028076,0.00011099,2]
[380286030,1755633037684,-151.0,0.00011099,2]
[380286031,1755633037693,-151.0,0.00011099,2]
[380286032,1755633037702,-151.0,0.00011099,2]
[380286033,1755633037712,-151.0,0.00011099,2]
[380286034,1755633037722,-151.0,0.00011099,2]
[380286035,1755633037731,-151.0,0.00011099,2]
[380286036,1755633037740,-151.292327,0.00011099,2]
[380286037,1755633037749,-151.0,0.00011099,2]
[380286038,1755633037758,-151.0,0.00011099,2]
[380286039,1755633037769,-151.0,0.00011099,2]
[380286041,1755633037778,-151.0,0.00011099,2]
[380286042,1755633037788,-151.0,0.00011099,2]
[380286044,1755633037797,-151.0,0.00011099,2]
[380286045,1755633037806,-151.0,0.00011099,2]
[380286046,1755633037816,-151.0,0.00011099,2]
[380286047,1755633037826,-151.0,0.00011099,2]
[380286048,1755633037835,-151.0,0.00011099,2]
[380286049,1755633037844,-243.72,0.00011099,2]
[380286050,1755633037853,-151.0,0.00011099,2]
[380286051,1755633037863,-151.0,0.00011099,2]
[380286052,1755633037874,-151.0,0.00011099,2]
[380286053,1755633037884,-228.036118,0.00011099,2]
[380286054,1755633037894,-151.0,0.00011099,2]
[380286055,1755633037904,-190.20556,0.00011099,2]
[380286056,1755633037913,-151.0,0.00011099,2]
[380286057,1755633037922,-151.0,0.00011099,2]
[380286058,1755633037931,-151.0,0.00011099,2]
[380286060,1755633037940,-151.0,0.00011099,2]
[380286061,1755633037949,-151.0,0.00011099,2]
[380286062,1755633037959,-151.0,0.00011099,2]
[380286063,1755633037968,-151.0,0.00011099,2]
[380286064,1755633037977,-151.0,0.00011099,2]
[380286065,1755633037986,-260.26193,0.00011099,2]
[380286066,1755633037994,-295.609294,0.00011099,2]
[380286067,1755633038003,-151.0,0.00011099,2]
[380286068,1755633038012,-151.0,0.00011099,2]
[380286069,1755633038021,-151.0,0.00011099,2]
[380286070,1755633038030,-151.0,0.00011099,2]
[380286071,1755633038039,-160.289918,0.00011099,2]
[380286072,1755633038049,-151.0,0.00011099,2]
[380286073,1755633038058,-166.06,0.00011179,2]
[380286074,1755633038067,-1775.0,0.00011258,2]
[380286075,1755633038077,-3371.0,0.00011258,2]
[380286076,1755633038086,-608.265,0.00011258,2]
[380286077,1755633038096,-21497.0,0.00011258,2]
[380286078,1755633038105,-717.0,0.00011258,2]
[380286079,1755633038115,-150.0,0.00011258,2]
[380286080,1755633038124,-6091.0,0.00011258,2]
[380286081,1755633038134,-4152.0,0.00011258,2]
[380286082,1755633038143,-178.768,0.00011258,2]
[380286083,1755633038152,-843.1481979,0.00011279,2]
[380286084,1755633038162,-7505.19,0.00011281,2]
[380286085,1755633038171,-1507.95,0.00011281,2]
[380286086,1755633038180,-150.99,0.00011281,2]
[380286087,1755633038189,-2751.0,0.00011507,2]
[380286088,1755633038198,-433.0,0.00011583,2]
[380286089,1755633038207,-3000.0,0.00011583,2]
[380286090,1755633038216,-238.35,0.00011584,2]
[380286091,1755633038226,-150.0,0.0001163,2]
[380286092,1755633038235,-160.36672887,0.00011633,2]
[380286093,1755633038244,-2351.0,0.00011754,2]
[380286094,1755633038253,-283.44,0.00011978,2]
[380286095,1755633038262,-26060.24952738,0.00012,2]
[380286096,1755633038272,-95154.79992501,0.00012,2]
[380286097,1755633038281,-200.0,0.00012,2]
[380286098,1755633038290,-25568.88,0.00012055,2]
[380286099,1755633038298,-21382.33,0.000121,7]
[380286100,1755633038307,-21382.33,0.000121,7]
[380286101,1755633038316,-1000.0,0.00012106,2]
[380286102,1755633038325,-21382.33,0.000122,7]
[380286103,1755633038334,-151.0,0.000122,2]
[380286104,1755633038343,-246.917818,0.000122,2]
[380286105,1755633038352,-151.0,0.000122,2]
[380286106,1755633038361,-151.0,0.000122,2]
[380286107,1755633038370,-151.0,0.000122,2]
[380286108,1755633038382,-151.0,0.000122,2]
[380286109,1755633038391,-700.58,0.00012282,2]
[380286110,1755633038401,-151.0,0.00012282,2]
[380286111,1755633038410,-291.03891,0.00012282,2]
[380286112,1755633038419,-151.0,0.00012282,2]
[380286113,1755633038429,-151.0,0.00012282,2]
[380286114,1755633038439,-220.234612,0.00012282,2]
[380286115,1755633038448,-151.0,0.00012282,2]
[380286116,1755633038458,-151.0,0.00012282,2]
[380286117,1755633038467,-151.0,0.00012282,2]